bitfinex-derivatives/quotes_ETHF0:USTF0_20260104
["timestamp","ask_amount","ask_price","bid_price","bid_amount"]
[1767509945749,0.16645186,3142.4,3140.9,0.13338015]
[1767509945958,4.548,3142.3,3140.9,0.13338015]
[1767509948151,0.35406451,3142.2,3140.9,0.13338015]
[1767509953655,0.16645186,3142.4,3140.9,0.13338015]
[1767509953863,3.953,3142.3,3140.9,0.13338015]
[1767509956653,0.35406451,3142.1,3140.9,0.13338015]
[1767509956957,0.35406451,3142.1,3140.7,0.00477311]
[1767509957164,0.49129508,3142.1,3140.7,0.00477311]
[1767509958249,0.35406451,3141.8,3140.7,0.00477311]
[1767509959963,4.68223057,3142.1,3140.7,0.00477311]
[1767509960356,4.545,3142.1,3140.7,0.13815326]
[1767509961668,0.35406451,3142.0,3140.7,0.13815326]
[1767509964270,0.35406451,3141.7,3140.7,0.00477311]
[1767509970373,0.13841359,3142.0,3140.7,0.00477311]
[1767509971165,0.35406451,3142.3,3140.7,0.13815566]
[1767509971368,4.542,3142.2,3140.7,0.13815566]
[1767509974490,0.35406451,3142.0,3140.7,0.13815566]
[1767509974881,4.542,3142.2,3140.7,0.13815566]
[1767509975072,0.35406451,3142.1,3140.7,0.13815566]
[1767509975680,0.13977887,3142.0,3140.7,0.00477311]
[1767509975983,0.35406451,3141.8,3140.7,0.00477311]
[1767509976689,4.542,3142.0,3140.7,0.1408471]
[1767509976981,4.542,3142.0,3140.7,0.00477311]
[1767509977684,4.542,3141.9,3140.7,0.1408471]
[1767509977888,4.542,3142.0,3140.7,0.1408471]
[1767509978185,0.35406451,3141.8,3140.7,0.00477311]
[1767509982483,0.35406451,3141.4,3140.7,0.00477311]
[1767509982686,0.35406451,3141.4,3140.5,0.00225509]
[1767509982984,4.541,3141.6,3140.5,0.00225509]
[1767509983684,4.68252643,3141.6,3140.5,0.00225509]
[1767509983878,0.35406451,3141.5,3140.5,0.00225509]
[1767509984084,5.03659094,3141.6,3140.5,0.00225509]
[1767509984684,0.35415411,3141.2,3140.5,0.00225509]
[1767509985080,0.35415411,3141.0,3140.5,0.00225509]
[1767509985277,0.35415411,3141.0,3140.0,0.1593]
[1767509985481,0.00477311,3140.8,3140.0,0.1593]
[1767509986374,0.00477311,3140.8,3140.0,0.16249511]
[1767509986888,0.00477311,3140.8,3140.1,0.35415411]
[1767509990189,0.00477311,3140.8,3140.1,6.0]
[1767509992386,0.00477311,3140.8,3140.0,0.51664922]
[1767509992791,0.00477311,3140.8,3140.0,0.65272321]
[1767509994595,0.00477311,3140.8,3140.2,0.35415411]
[1767509994796,0.00477311,3140.8,3140.1,0.35415411]
[1767509995301,0.35415411,3140.7,3140.0,0.00319511]
[1767509995793,0.00477311,3140.8,3140.0,0.00319511]
[1767509995996,0.00477311,3140.8,3140.2,0.35415411]
[1767509996303,0.00477311,3140.8,3140.0,0.49342321]
[1767509996896,0.35415411,3140.6,3140.0,0.00319511]
[1767509997098,6.00477311,3140.8,3139.4,0.22657369]
[1767509997099,0.35415411,3140.1,3139.4,0.22657369]
[1767509997300,0.00477311,3140.8,3139.4,0.22657369]
[1767509997493,0.35415411,3140.3,3139.4,0.35902111]
[1767509997897,0.00477311,3140.8,3139.6,0.48660153]
[1767509998089,0.0023751,3140.3,3139.7,0.13244742]
[1767509998289,0.35652921,3140.3,3139.7,0.13244742]
[1767509998498,0.0023751,3140.3,3139.7,0.13244742]
[1767509998698,0.0023751,3140.3,3139.9,0.13244742]
[1767509998904,0.00477311,3140.8,3140.0,0.13244742]
[1767509999594,0.35415411,3140.7,3140.0,0.13244742]
[1767509999800,0.35822919,3140.7,3140.0,0.13244742]
[1767510000399,0.00407508,3140.7,3140.2,0.13245551]
[1767510000600,3.185,3142.2,3140.4,0.13245551]
[1767510000904,0.35415411,3141.9,3140.8,0.13245551]
[1767510001204,0.35415411,3141.7,3140.8,0.48660962]
[1767510001506,0.35656268,3141.7,3140.8,0.13245551]
[1767510001804,0.00477311,3141.6,3140.8,0.13245551]
[1767510002805,0.35415411,3141.0,3140.4,0.13245551]
[1767510003101,0.35415411,3140.8,3139.8,0.13245551]
[1767510003300,0.35415411,3140.8,3140.4,0.00477311]
[1767510003502,0.35415411,3140.6,3139.8,0.13245551]
[1767510006894,0.35892722,3141.6,3139.8,0.13245551]
[1767510007206,0.35415411,3140.8,3139.8,0.13245551]
[1767510008712,0.35892722,3141.6,3139.8,0.13245551]
[1767510008910,0.35415411,3140.8,3139.9,0.13245551]
[1767510009806,0.35415411,3140.9,3140.1,0.13245551]
[1767510010201,0.35415411,3141.1,3140.1,0.13245551]
[1767510010701,0.35415411,3140.9,3140.1,0.13245551]
[1767510011209,0.35892722,3141.6,3140.2,0.13245551]
[1767510011398,0.35415411,3141.3,3140.4,0.13245551]
[1767510013206,0.35415411,3141.5,3140.5,0.35415411]
[1767510013401,0.00477311,3141.6,3140.8,0.13245551]
[1767510013811,0.35415411,3141.5,3140.8,0.13245551]
[1767510014009,0.00477311,3141.6,3140.2,0.15929]
[1767510014010,0.00240857,3141.7,3140.9,0.48660962]
[1767510014210,0.35415411,3141.5,3140.9,0.13245551]
[1767510014807,0.35415411,3141.5,3140.5,0.13245551]
[1767510015007,0.35415411,3141.3,3140.5,0.13245551]
[1767510015207,0.00477311,3141.3,3140.5,0.13245551]
[1767510015399,0.00477311,3141.3,3140.5,6.13245551]
[1767510015710,0.00477311,3141.3,3140.6,0.13245551]
[1767510021114,0.00477311,3141.3,3139.9,3.185]
[1767510021115,0.35415411,3140.7,3140.0,0.13245551]
[1767510021315,0.00477311,3141.3,3140.0,0.13245551]
[1767510021316,0.35415411,3140.9,3140.0,0.13245551]
[1767510023104,0.00477311,3141.3,3140.0,0.13245551]
[1767510023414,0.35415411,3140.8,3140.0,0.13245551]
[1767510026117,0.00477311,3141.3,3140.0,0.13245551]
[1767510026317,0.35415411,3140.9,3140.0,0.13245551]
[1767510027220,0.35415411,3140.9,3140.1,0.13245551]
[1767510028321,0.35415411,3140.7,3140.1,0.13245551]
[1767510029816,0.00477311,3141.3,3140.1,0.13245551]
[1767510030023,0.35415411,3140.7,3140.1,0.13245551]
[1767510030818,0.35415411,3140.5,3139.7,0.1371555]
[1767510031618,0.00477311,3141.3,3139.7,0.1371555]
[1767510031619,0.35415411,3140.7,3139.7,0.1371555]
[1767510034326,0.35415411,3140.7,3139.9,0.00477311]
[1767510034508,0.35415411,3140.7,3139.9,0.13730686]
[1767510034909,0.35415411,3140.5,3139.9,0.13730686]
[1767510036614,0.35415411,3140.5,3139.9,0.00477311]
[1767510037626,0.35415411,3140.3,3139.9,0.00477311]
[1767510038323,0.35415411,3140.0,3139.4,0.23036202]
[1767510039818,0.35415411,3140.2,3139.4,0.23036202]
[1767510040328,0.35415411,3140.4,3139.5,0.13253375]
[1767510040628,0.35892722,3141.3,3140.2,0.48668786]
[1767510040828,0.35415411,3141.1,3140.2,0.13253375]
[1767510042825,0.00477311,3141.3,3140.5,0.48668786]
[1767510043028,0.00477311,3141.3,3140.5,0.13253375]
[1767510043831,0.00477311,3141.3,3140.7,0.13253375]
[1767510046832,0.35410327,3142.0,3140.8,0.13253375]
[1767510047919,0.00477311,3141.6,3140.9,0.13730686]
[1767510048531,1e-08,3141.6,3140.9,0.13730686]
[1767510049028,0.35410327,3142.5,3140.9,0.13730686]
[1767510049926,0.35410327,3142.2,3140.9,0.13730686]
[1767510050134,0.00477311,3141.6,3140.9,0.13730686]
[1767510051330,0.15917,3142.6,3141.0,0.13253375]
[1767510051533,0.35410327,3142.4,3141.0,0.13253375]
[1767510052033,0.15917,3142.6,3141.0,0.13253375]
[1767510052333,0.35410327,3142.2,3141.0,0.13253375]
[1767510052528,0.00477311,3142.1,3141.0,0.13253375]
[1767510054941,0.00477311,3142.1,3140.9,0.00477311]
[1767510055133,0.35410327,3141.7,3140.9,0.00477311]
[1767510057339,0.35887638,3142.1,3140.9,0.00477311]
[1767510060245,0.00477311,3142.1,3140.9,0.13738325]
[1767510063041,0.00477311,3142.1,3141.3,0.13261014]
[1767510063741,0.00477311,3142.1,3141.0,0.15925]
[1767510063946,0.00477311,3142.1,3141.0,0.29186014]
[1767510064241,0.00477311,3142.1,3141.1,0.13261014]
[1767510066947,0.00477311,3142.1,3141.1,0.29186014]
[1767510067142,0.00477311,3142.1,3141.2,0.13261014]
[1767510067343,0.00263938,3142.6,3141.4,0.13261014]
[1767510068439,0.00477311,3142.3,3141.4,0.13261014]
[1767510074754,0.00477311,3142.3,3141.4,0.48671341]
[1767510074957,0.00477311,3142.3,3141.5,0.13261014]
[1767510077850,0.00263938,3142.6,3141.8,0.13261014]
[1767510078155,0.35410327,3143.5,3141.8,0.13571063]
[1767510078754,0.35410327,3143.5,3142.1,0.13261014]
[1767510079056,0.00477311,3143.0,3142.5,0.00477311]
[1767510079252,0.00829051,3143.0,3142.5,0.00477311]
[1767510080162,0.00829051,3143.0,3142.5,0.13738325]
[1767510080953,0.00829051,3143.0,3142.5,0.00477311]
[1767510081154,6.36239378,3143.0,3141.8,0.16231049]
[1767510081361,0.36239378,3143.0,3141.8,0.29492063]
[1767510081563,0.00829051,3143.0,3141.9,0.13261014]
[1767510082163,0.00829051,3143.0,3142.1,0.00477311]
[1767510083761,0.00829051,3143.0,3142.1,0.13738325]
[1767510089854,0.15912,3143.7,3142.3,0.13261014]
[1767510090061,0.35410327,3144.1,3142.3,0.13261014]
[1767510090365,0.35410327,3143.8,3142.3,0.13261014]
[1767510090864,0.35764781,3143.8,3142.3,0.13261014]
[1767510092266,0.35410327,3143.2,3142.3,0.13261014]
[1767510092663,0.00477311,3143.1,3142.3,0.13261014]
[1767510108798,0.35373366,3143.4,3142.4,0.13922273]
[1767510109098,0.35373366,3143.4,3142.1,0.00477311]
[1767510109099,0.00354454,3143.8,3142.6,0.13922273]
[1767510109299,0.00354454,3143.8,3143.0,0.13922273]
[1767510109697,0.35373366,3143.7,3143.0,0.13922273]
[1767510110800,0.00354454,3143.8,3143.0,0.13922273]
[1767510111202,0.00318211,3143.7,3143.0,0.13922273]
[1767510112402,0.00354454,3143.8,3143.0,0.13922273]
[1767510112598,0.35373366,3143.7,3143.0,0.13922273]
[1767510112805,0.35373366,3143.5,3143.0,0.13922273]
[1767510115595,0.00354454,3143.8,3143.0,0.13922273]
[1767510115801,0.00354454,3143.8,3143.2,0.13922273]
[1767510115994,0.35373366,3144.4,3143.4,0.13922273]
[1767510116302,0.35373366,3144.0,3143.4,0.13922273]
[1767510117107,0.35608741,3144.0,3143.4,0.13922273]
[1767510117795,0.00235375,3144.0,3143.4,0.13922273]
[1767510120712,0.35373366,3144.2,3143.4,0.13922273]
[1767510121306,0.15905,3144.9,3143.4,0.13922273]
[1767510121496,0.35373366,3144.2,3143.8,0.00477311]
[1767510121693,0.35617107,3144.2,3143.8,0.00477311]
[1767510122192,0.00243741,3144.2,3143.8,0.00477311]
[1767510122413,0.35617107,3144.2,3143.8,0.00477311]
[1767510123397,0.00243741,3144.2,3143.8,0.00477311]
[1767510123599,0.35617107,3144.2,3143.8,0.14528145]
[1767510124197,0.35617107,3144.2,3143.8,0.00477311]
[1767510125912,0.00243741,3144.2,3143.8,0.00477311]
[1767510127807,0.35373366,3144.1,3143.8,0.00477311]
[1767510128118,6.00243741,3144.2,3142.5,1.38936214]
[1767510128119,0.35373366,3143.7,3142.9,0.14050834]
[1767510128308,0.35373366,3143.9,3143.0,0.14050834]
[1767510128508,0.35373366,3143.9,3142.6,0.15917]
[1767510128509,0.35373366,3144.1,3143.2,0.14050834]
[1767510129001,0.35373366,3144.1,3143.3,0.00477311]
[1767510131004,0.00243741,3144.2,3143.3,0.00477311]
[1767510131205,0.35373366,3144.0,3143.3,0.00477311]
[1767510132105,0.00243741,3144.2,3143.3,0.14528145]
[1767510132106,0.35617107,3144.2,3143.3,0.14528145]
[1767510132308,0.00243741,3144.2,3143.4,0.14050834]
[1767510132510,0.35850676,3144.1,3143.4,0.14050834]
[1767510132711,0.35373366,3143.9,3143.3,0.00477311]
[1767510138521,0.0047731,3144.1,3143.4,0.14050834]
[1767510144628,0.35850676,3144.1,3143.4,0.14050834]
[1767510144819,0.0047731,3144.1,3143.4,0.14050834]
[1767510145019,0.35373366,3144.0,3143.4,0.14050834]
[1767510148024,0.0047731,3144.1,3143.4,0.14050834]
[1767510148221,0.35850676,3144.1,3143.4,0.14050834]
[1767510161335,0.0047731,3144.1,3143.4,0.14050834]
[1767510163534,6.61204,3145.1,3143.8,0.13149659]
[1767510163725,0.35373366,3144.7,3143.8,0.13149659]
[1767510164523,0.3564561,3144.7,3143.8,0.13149659]
[1767510166039,0.35373366,3144.5,3143.8,0.13149659]
[1767510166949,0.3564561,3144.7,3143.8,0.13149659]
[1767510168142,0.00272244,3144.7,3143.8,0.13149659]
[1767510168341,0.3564561,3144.7,3143.8,0.13149659]
[1767510168545,0.3564561,3144.7,3143.3,0.00477311]
[1767510168546,0.35373366,3143.9,3143.3,0.00477311]
[1767510168845,0.00477311,3143.9,3143.0,0.13149659]
[1767510169046,0.35373366,3143.4,3143.0,0.13149659]
[1767510169245,0.35373366,3143.6,3142.6,0.13149659]
[1767510169744,0.35373366,3143.6,3142.8,0.00477311]
[1767510170440,0.35843333,3143.9,3142.8,0.00477311]
[1767510171062,0.35843333,3143.9,3142.8,0.1362697]
[1767510179259,0.35366022,3143.6,3142.8,0.1362697]
[1767510179846,0.35366022,3143.6,3142.8,0.00477311]
[1767510182362,0.00477311,3143.9,3142.8,0.00477311]
[1767510182659,0.35366022,3143.7,3142.8,0.00477311]
[1767510183345,0.00477311,3143.9,3142.8,0.14364501]
[1767510185355,0.35366022,3143.8,3142.8,0.14364501]
[1767510187559,0.00477311,3143.9,3142.8,0.14364501]
[1767510191768,0.15907,3144.5,3143.0,0.1388719]
[1767510192258,0.51273022,3144.5,3143.0,0.1388719]
[1767510196173,0.15907,3144.5,3143.0,0.1388719]
[1767510199069,0.00272244,3144.7,3143.3,0.1388719]
[1767510199470,0.00272244,3144.7,3143.5,0.35366022]
[1767510199776,0.00272244,3144.7,3143.6,0.1388719]
[1767510221991,0.00272244,3144.7,3143.9,0.13662306]
[1767510224888,0.15903,3145.4,3143.9,0.13662306]
[1767510225791,0.16287244,3145.4,3143.9,0.13662306]
[1767510225993,0.35366022,3145.0,3143.9,0.13662306]
[1767510226186,0.35366022,3144.6,3143.1,0.13662306]
[1767510232505,0.35348898,3144.3,3143.3,0.13662306]
[1767510236405,0.35348898,3144.3,3143.4,0.13385775]
[1767510241610,0.15906,3144.9,3143.4,0.13385775]
[1767510241803,0.35348898,3144.4,3143.4,0.13385775]
[1767510241998,0.35348898,3144.3,3143.4,0.13385775]
[1767510242203,6.15906,3144.9,3143.4,0.13385775]
[1767510242501,0.35348898,3144.3,3143.4,0.13385775]
[1767510243009,0.35348898,3144.3,3143.0,0.15915]
[1767510243313,0.35348898,3143.7,3142.9,0.13346398]
[1767510243511,0.35348898,3143.9,3142.9,0.13346398]
[1767510243714,0.35348898,3143.9,3143.0,0.13346398]
[1767510243917,0.35348898,3144.1,3143.0,0.13346398]
[1767510245198,0.35348898,3144.1,3143.1,0.35348898]
[1767510245405,0.35348898,3144.3,3143.4,0.13346398]
[1767510246008,0.35348898,3144.1,3143.4,0.13346398]
[1767510246410,0.35348898,3144.1,3143.0,0.48695296]
[1767510246712,0.35348898,3144.0,3143.1,0.13346398]
[1767510249014,0.35348898,3144.4,3143.5,0.13346398]
[1767510249614,0.35348898,3144.2,3143.5,0.13346398]
[1767510249916,0.35348898,3144.2,3143.1,0.48695296]
[1767510250214,0.35348898,3144.2,3143.2,0.13346398]
[1767510250615,0.35348898,3144.0,3143.2,0.13346398]
[1767510252918,0.35348898,3143.7,3142.8,0.13823709]
[1767510253221,0.35348898,3143.9,3142.8,0.49172607]
[1767510253411,0.35348898,3143.9,3142.9,0.13346398]
[1767510254814,0.35348898,3143.8,3142.9,0.13346398]
[1767510256022,6.0,3143.8,3142.8,0.00477311]
[1767510256318,0.35348898,3143.4,3142.8,0.00477311]
[1767510256509,0.35348898,3143.6,3142.8,0.00477311]
[1767510258917,0.35348898,3143.4,3142.8,0.00477311]
[1767510259113,0.35348898,3143.4,3142.4,0.98695296]
[1767510259514,0.35348898,3143.4,3142.5,0.13346398]
[1767510260114,0.35348898,3143.4,3142.6,0.13823709]
[1767510260419,0.35348898,3143.6,3142.7,0.13346398]
[1767510261516,0.35348898,3144.4,3142.7,0.13346398]
[1767510261723,0.35348898,3143.9,3142.9,0.13346398]
[1767510262522,0.00477311,3143.7,3143.0,0.48695296]
[1767510262822,0.00477311,3143.7,3143.1,0.13346398]
[1767510263921,0.35348898,3144.1,3143.3,0.13346398]
[1767510264318,0.35348898,3143.9,3143.3,0.13346398]
[1767510264519,0.35348898,3143.7,3142.9,0.13346398]
[1767510265020,0.15908,3144.4,3143.1,0.13346398]
[1767510265216,0.51256898,3144.4,3143.3,0.13346398]
[1767510265424,0.35348898,3144.2,3143.3,0.13346398]
[1767510266931,0.35348898,3144.4,3143.4,0.48695296]
[1767510267722,0.35348898,3144.2,3143.4,0.13346398]
[1767510274224,0.35348898,3144.4,3143.5,0.13775206]
[1767510274726,0.35348898,3144.2,3143.5,0.13775206]
[1767510276328,0.35348898,3144.0,3143.0,0.49124104]
[1767510277032,0.35348898,3144.0,3143.0,0.13775206]
[1767510278635,0.35348898,3143.8,3143.0,0.13775206]
[1767510279337,0.35348898,3144.0,3143.0,0.13775206]
[1767510283634,0.35348898,3144.4,3143.3,0.35348898]
[1767510283931,0.35348898,3144.4,3143.3,0.49124104]
[1767510285240,0.35348898,3144.2,3143.3,0.13775206]
[1767510286343,0.15908,3144.5,3143.3,0.13775206]
[1767510286537,0.35348898,3144.2,3143.3,0.13775206]
[1767510288144,0.35348898,3144.0,3143.3,0.13775206]
[1767510288641,0.15908,3144.5,3143.3,0.13775206]
[1767510288842,0.35348898,3144.2,3143.3,0.13775206]
[1767510289447,0.35348898,3144.4,3143.4,0.13775206]
[1767510290647,0.35348898,3144.4,3143.0,0.35348898]
[1767510290648,0.35348898,3144.7,3143.7,0.35348898]
[1767510291038,0.35348898,3144.7,3143.6,0.13775206]
[1767510291450,4.494,3144.9,3143.6,0.13775206]
[1767510291652,0.35348898,3144.6,3143.6,0.13775206]
[1767510291848,0.35348898,3144.4,3143.6,0.13775206]
[1767510294551,0.35344458,3144.8,3143.6,0.13775206]
[1767510296848,4.496,3144.9,3143.6,0.13775206]
[1767510299054,0.15905,3145.1,3143.6,0.13775206]
[1767510299257,4.495,3145.0,3143.7,0.13775206]
[1767510300360,4.84844458,3145.0,3143.7,0.13775206]
[1767510302060,4.84844458,3145.0,3142.6,0.00477311]
[1767510302061,0.35344458,3144.1,3142.8,0.13272883]
[1767510302358,0.35344458,3143.8,3142.8,0.13272883]
[1767510302558,0.35344458,3143.8,3142.6,0.00477311]
[1767510305867,0.35344458,3143.5,3142.6,0.00477311]
[1767510322797,0.35344458,3143.2,3142.6,0.00477311]
[1767510325891,0.35344458,3143.2,3142.0,0.13272883]
[1767510327095,0.00477311,3142.9,3142.3,0.00477311]
[1767510327294,0.00721443,3142.9,3142.3,0.00477311]
[1767510329687,0.00721443,3142.9,3142.3,0.13750194]
[1767510330704,4.84544458,3143.6,3142.4,0.14260322]
[1767510330897,0.35344458,3143.6,3142.4,0.14260322]
[1767510331398,0.51256458,3143.7,3142.4,0.14260322]
[1767510331697,0.51501936,3143.7,3142.4,0.14260322]
[1767510333099,0.35344458,3143.1,3142.3,0.00477311]
[1767510335400,0.35344458,3142.8,3142.0,0.14260322]
[1767510336402,0.00477311,3143.0,3142.1,0.00477311]
[1767510337296,0.00477311,3143.0,3142.1,0.14146867]
[1767510339793,0.00477311,3143.0,3142.1,6.14146867]
[1767510339996,1e-08,3143.0,3142.2,0.13669556]
[1767510356416,1e-08,3143.0,3142.2,6.13669556]
[1767510356613,1e-08,3143.0,3142.6,0.13669556]
[1767510356810,0.35613766,3143.7,3142.6,0.13669556]
[1767510357814,0.35368288,3143.5,3142.6,0.13669556]
[1767510359619,6.35613766,3143.7,3142.6,0.13669556]
[1767510359818,0.35613766,3143.7,3142.6,0.13669556]
[1767510360420,0.35613766,3143.7,3142.7,0.35368288]
[1767510360731,0.35613766,3143.7,3142.8,0.14336225]
[1767510360922,0.00245478,3143.7,3142.8,0.14336225]
[1767510361221,0.35613766,3143.7,3142.8,0.14336225]
[1767510364327,0.00245478,3143.7,3142.8,0.14336225]
[1767510365723,0.00245478,3143.7,3143.0,0.14336225]
[1767510367924,0.35613766,3143.7,3143.0,0.14336225]
[1767510372830,0.15905,3145.0,3143.4,0.14336225]
[1767510373034,0.35368288,3144.8,3143.9,0.00477311]
[1767510373228,0.15905,3145.0,3143.9,0.00477311]
[1767510373428,0.35368288,3144.7,3143.9,0.00477311]
[1767510373824,0.35368288,3144.5,3143.9,0.00477311]
[1767510374130,6.0,3144.8,3143.9,0.00477311]
[1767510374334,0.35368288,3144.6,3143.9,0.00477311]
[1767510374533,0.35368288,3144.4,3143.9,0.14813536]
[1767510375745,0.35368288,3144.2,3143.4,0.14336225]
[1767510376935,0.35368288,3144.2,3143.5,0.00477311]
[1767510378431,0.00477311,3144.2,3143.5,0.00477311]
[1767510378633,0.00477311,3144.2,3143.5,0.14813536]
[1767510384125,0.00477311,3144.2,3143.5,0.50181824]
[1767510384345,0.00477311,3144.2,3143.6,0.14336225]
[1767510391938,0.35845599,3144.2,3143.5,0.00477311]
[1767510392540,0.00477311,3144.2,3143.5,0.14656895]
[1767510403949,0.00477311,3144.2,3143.5,0.50025183]
[1767510404160,0.00477311,3144.2,3143.6,0.13250349]
[1767510407446,0.00264487,3144.9,3143.5,0.35845599]
[1767510407447,0.35368288,3144.8,3143.8,0.13250349]
[1767510408549,0.00264487,3144.9,3144.0,0.13250349]
[1767510409046,6.00264487,3144.9,3144.0,0.13250349]
[1767510409252,0.00264487,3144.9,3144.0,0.13250349]
[1767510409850,0.35368288,3144.8,3144.0,0.13250349]
[1767510411852,0.00264487,3144.9,3144.1,0.15909]
[1767510412048,0.35368288,3145.6,3144.8,0.13250349]
[1767510412248,0.35368288,3145.0,3144.2,0.13250349]
[1767510412956,0.35690138,3145.0,3144.2,0.13552926]
[1767510413158,0.0032185,3145.0,3144.2,0.13552926]
[1767510413458,0.35368288,3144.9,3144.4,0.13250349]
[1767510413855,0.35690138,3145.0,3144.4,0.13250349]
[1767510414958,0.35690138,3145.0,3144.2,0.00302577]
[1767510416159,0.35690138,3145.0,3144.2,0.13552926]
[1767510417854,0.0032185,3145.0,3144.2,0.13552926]
[1767510418157,0.0032185,3145.0,3144.4,0.13250349]
[1767510420856,0.0032185,3145.0,3144.2,0.00302577]
[1767510421365,0.0032185,3145.0,3144.2,0.13702539]
[1767510422566,0.15897,3146.7,3145.0,0.13399962]
[1767510422756,0.35328113,3145.5,3144.3,0.13399962]
[1767510423560,0.35698152,3145.5,3144.3,0.13399962]
[1767510423866,0.00370039,3145.5,3144.6,0.00477311]
[1767510424060,0.00370039,3145.5,3144.6,0.13877273]
[1767510425965,0.15898,3146.4,3144.8,0.13399962]
[1767510426369,0.51226113,3146.4,3144.8,0.13399962]
[1767510426762,0.15898,3146.4,3144.8,0.13399962]
[1767510426958,0.5146868,3146.4,3144.8,0.13399962]
[1767510427159,0.00477311,3145.9,3144.8,0.13399962]
[1767510429764,0.00242567,3146.4,3145.1,0.35328113]
[1767510429954,0.35328113,3147.3,3145.9,0.13399962]
[1767510430271,0.35328113,3147.0,3145.9,0.13399962]
[1767510430464,0.35328113,3146.7,3145.9,0.13399962]
[1767510430671,0.35328113,3146.7,3145.4,0.13399962]
[1767510430970,0.35622523,3146.7,3145.7,0.00477311]
[1767510431359,0.0029441,3146.7,3145.7,0.00477311]
[1767510431564,6.0,3146.6,3145.7,0.00477311]
[1767510432973,6.0,3146.6,3145.7,0.00102078]
[1767510434478,0.1619141,3146.7,3145.7,0.00102078]
[1767510434681,6.0,3146.6,3145.7,0.00102078]
[1767510434877,0.00375234,3146.5,3145.7,0.00102078]
[1767510435074,0.00375234,3146.5,3145.0,0.13399962]
[1767510435869,0.00375234,3146.5,3145.1,0.35328113]
[1767510436278,0.00375234,3146.5,3145.5,0.00477311]
[1767510437574,0.16272234,3146.5,3145.5,0.00477311]
[1767510440174,6.0,3146.4,3145.5,0.00477311]
[1767510440375,0.16272234,3146.5,3145.5,0.13877273]
[1767510440987,0.00375234,3146.5,3145.7,0.13399962]
[1767510457386,6.00375234,3146.5,3145.7,0.13399962]
[1767510457894,6.00375234,3146.5,3145.5,0.00477311]
[1767510458099,0.00375234,3146.5,3145.5,0.00477311]
[1767510458287,0.16272234,3146.5,3145.5,0.00477311]
[1767510459896,4.475,3146.4,3145.5,0.00477311]
[1767510462994,10.475,3146.4,3145.5,0.00477311]
[1767510464302,4.475,3146.4,3145.5,0.00477311]
[1767510464901,10.475,3146.4,3145.5,0.00477311]
[1767510466504,10.63398,3146.4,3145.5,0.00477311]
[1767510469314,10.63398,3146.4,3145.3,0.13788018]
[1767510469603,4.63398,3146.4,3145.3,0.13788018]
[1767510470207,0.15899,3146.2,3145.3,0.13788018]
[1767510470501,0.15899,3146.2,3145.5,0.00477311]
[1767510473508,0.15899,3146.2,3145.5,0.14265329]
[1767510486817,0.15899,3146.2,3145.5,0.49574656]
[1767510487018,0.15899,3146.2,3145.5,0.14265329]
[1767510487613,0.35309327,3145.9,3144.6,0.13919085]
[1767510487814,4.525,3145.8,3145.2,0.13919085]
[1767510488730,4.525,3145.8,3145.2,0.14396396]
[1767510489927,4.525,3145.8,3145.2,0.49705723]
[1767510493530,4.525,3145.8,3145.5,0.13919085]
[1767510494028,4.532,3145.7,3145.5,0.13919085]
[1767510500236,0.15898,3146.4,3145.6,0.49228412]
[1767510500439,4.547,3146.3,3145.7,0.13919085]
[1767510502042,4.547,3146.3,3145.8,0.49228412]
[1767510502247,4.547,3146.3,3145.9,0.13919085]
[1767510502447,4.547,3146.3,3145.8,0.35309327]
[1767510502634,4.552,3146.2,3145.8,0.35309327]
[1767510502839,4.552,3146.2,3145.6,0.35309327]
[1767510503442,4.552,3146.2,3145.6,0.49228412]
[1767510503748,4.552,3146.2,3145.8,0.49228412]
[1767510504137,4.552,3146.2,3145.9,0.13919085]
[1767510504748,4.90509327,3146.2,3145.4,0.13919085]
[1767510506137,4.552,3146.2,3145.4,0.13919085]
[1767510508648,4.552,3146.2,3145.5,0.13919085]
[1767510520155,4.552,3146.2,3145.2,0.14844134]
[1767510525655,0.51211361,3145.9,3145.2,0.00477311]
[1767510528263,0.15901,3145.9,3145.2,0.00477311]
[1767510540958,4.552,3146.2,3145.2,0.14921675]
[1767510541872,0.15898,3146.4,3145.2,0.14921675]
[1767510542269,4.574,3146.3,3145.2,0.14921675]
[1767510542569,0.15898,3146.4,3145.2,0.14921675]
[1767510542778,4.574,3146.2,3145.2,0.14921675]
[1767510547065,4.574,3146.2,3145.3,0.44284364]
[1767510547372,4.574,3146.2,3145.4,0.14444364]
[1767510558083,4.574,3146.2,3145.3,0.2984]
[1767510567102,4.574,3146.2,3145.2,0.00477311]
[1767510567596,4.574,3146.2,3145.2,0.14921675]
[1767510568099,4.574,3146.2,3145.3,0.2172]
[1767510570307,4.574,3146.2,3145.2,0.14921675]
[1767510571504,0.2535,3146.1,3145.2,0.14921675]
[1767510571801,0.2535,3146.1,3144.3,0.14108807]
[1767510571993,1.13871554,3146.0,3144.3,0.14108807]
[1767510572194,0.159,3146.0,3144.3,0.14108807]
[1767510574607,0.159,3146.0,3144.8,0.00477311]
[1767510576901,0.15901,3145.8,3144.8,0.00477311]
[1767510577105,0.97831299,3145.7,3144.8,0.00477311]
[1767510577290,0.15901,3145.8,3144.8,0.00477311]
[1767510580908,0.15901,3145.7,3144.8,0.00477311]
[1767510583612,0.15902,3145.6,3144.8,0.00477311]
[1767510583910,4.602,3145.5,3144.8,0.00477311]
[1767510585205,0.2895,3145.4,3144.8,0.00477311]
[1767510585401,0.2895,3145.4,3144.3,0.14108807]
[1767510587199,0.2895,3145.4,3144.5,0.00477311]
[1767510599210,4.76103,3145.5,3144.5,0.00477311]
[1767510601919,1.69862376,3146.1,3144.5,6.14635935]
[1767510602126,5.58961209,3146.0,3144.6,0.14158624]
[1767510602323,5.58961209,3145.9,3144.6,0.14158624]
[1767510602519,4.611,3145.9,3144.7,0.14158624]
[1767510602714,0.35318294,3146.2,3144.7,0.14158624]
[1767510602915,5.59073551,3146.1,3144.7,0.14158624]
[1767510603123,0.97873551,3146.0,3144.7,0.14158624]
[1767510603515,1.13773551,3146.0,3144.7,0.14158624]
[1767510603713,0.97873551,3145.9,3144.7,0.14158624]
[1767510606123,1.33191845,3145.9,3144.7,0.14158624]
[1767510606324,0.97873551,3145.8,3144.7,0.14158624]
[1767510606628,0.35318294,3145.3,3144.5,0.00477311]
[1767510606812,4.619,3145.2,3144.5,0.00477311]
[1767510607135,4.619,3145.2,3143.9,0.14158624]
[1767510609127,4.619,3145.2,3144.4,0.00318211]
[1767510625240,0.15903,3145.4,3144.4,0.00318211]
[1767510625443,4.632,3145.3,3144.4,0.00318211]
[1767510626042,0.15903,3145.4,3144.4,0.00318211]
[1767510626243,4.632,3145.3,3144.4,0.00318211]
[1767510626846,0.15903,3145.4,3144.4,0.14476835]
[1767510627041,4.633,3145.3,3144.6,0.14158624]
[1767510637652,0.3945,3145.2,3144.6,0.14158624]
[1767510642166,0.3945,3145.2,3144.6,6.14158624]